Cogmind - Beta 17.1 @@@ ROGUE MODE // 2026.08.26 @ 13:50:31 Player: DietSnapple Result: Destroyed by Gamma Bomb Trap Performance ------------- Evolutions (6) 3000 Regions Visited (10) 2000 Robots Destroyed (36) 180 Value Destroyed (917) 917 Prototype IDs (14) 280 Alien Tech Used (0) 0 Bonus (1312) 1312 TOTAL SCORE: 7689 Bonus ------- High Alert Combat Kills 12 Entered DSFs 500 Registered with UFD 300 Met Optimus in HQ 500 Cogmind --------- Core Integrity 0/1150 Matter 283/300 Energy 98/100 System Corruption 0% Temperature Cool (0) Movement Core (50) Location -4/Extension Parts ------- > --- POWER (2) -------- (None) > --- PROPULSION (4) --- (None) > --- UTILITY (11) ----- System Shield Improved System Shield A0-MCA's Component Scanner Corruption Screen > --- WEAPON (2) ------- (None) > --- INVENTORY (5) ---- Light Fission Core Myomer Leg Terrain Scanner Improved Component Analysis Suite Heavy Flak Cannon Peak State ------------ > --- POWER ------------ Nuclear Core Micro Fission Core > --- PROPULSION ------- Improved Medium Treads Improved Medium Treads Improved Medium Treads Improved Medium Treads > --- UTILITY ---------- Large Storage Unit Machine Analyzer Improved Terrain Scanner Experimental Terrain Scan Processor Kinecellerator Light Armor Plating Hardened Medium Armor Plating > --- WEAPON ----------- Junk Cannon > --- INVENTORY -------- Improved Medium Treads Improved Medium Treads Scrap Suit Improved Cooling System Matter Compressor Triangulator Weapon Cycler Hacking Suite A0-MCA's Component Scanner Corruption Screen Assault Cannon CPS Tube Flail [Rating: 70] Favorites ----------- Power Ion Engine Engine Ion Engine Power Core Nuclear Core Propulsion Light Treads Treads Light Treads Hover Unit Gyrokinetic Inverter Utility Medium Storage Unit Device Seismic Detector Storage Medium Storage Unit Processor A0-MCA's Component Scanner Hackware Improved Hacking Suite Protection Hardened Medium Armor Plating Weapon Light Cannon Energy Gun Medium Laser Ballistic Gun Assault Rifle Ballistic Cannon Light Cannon Special Weapon Junk Cannon Impact Weapon Makeshift Hammer Slashing Weapon Chainsword Build | -11 -10 -10 -8 -6 -6 -5 -5 -5 -4 -4 ------- Run | Yrd Mat Sub Scr Fac DSF Fac Upp Upp Fac Ext Slots Evolved 12 | . . . . 8 . 2 . . 2 . Power 1 | . . . . 1 . . . . . . Propulsion 2 | . . . . 2 . . . . . . Utility 9 | . . . . 5 . 2 . . 2 . Weapon . | . . . . . . . . . . . Parts Attached 46 | 7 6 2 7 4 6 7 1 . 3 3 Power 5 | 2 1 . 1 . 1 . . . . . Engine 3 | 2 1 . . . . . . . . . Core 2 | . . . 1 . 1 . . . . . Reactor . | . . . . . . . . . . . Propulsion 11 | 2 1 . 2 . 4 2 . . . . Treads 10 | 2 1 . 2 . 4 1 . . . . Leg . | . . . . . . . . . . . Wheel . | . . . . . . . . . . . Hover 1 | . . . . . . 1 . . . . Flight . | . . . . . . . . . . . Utility 19 | 1 2 1 3 4 . 3 1 . 1 3 Device 5 | 1 . . . 2 . 1 . . . 1 Storage 3 | . 2 . 1 . . . . . . . Processor 5 | . . . 1 2 . 2 . . . . Hackware 3 | . . . . . . . 1 . . 2 Protection 3 | . . 1 1 . . . . . 1 . Artifact . | . . . . . . . . . . . Weapon 11 | 2 2 1 1 . 1 2 . . 2 . Energy Gun 1 | 1 . . . . . . . . . . Energy Cannon . | . . . . . . . . . . . Ballistic Gun 1 | 1 . . . . . . . . . . Ballistic Cannon 5 | . 2 . . . 1 1 . . 1 . Launcher . | . . . . . . . . . . . Special Weapon 1 | . . . 1 . . . . . . . Impact Weapon 2 | . . 1 . . . 1 . . . . Slashing Weapon 1 | . . . . . . . . . 1 . Piercing Weapon . | . . . . . . . . . . . Special Melee Weapon . | . . . . . . . . . . . Unidentified Prototypes 1 | . . . 1 . . . . . . . Parts Lost 21 | . 1 . . . 11 . 1 . 7 1 Power 2 | . . . . . 2 . . . . . Propulsion 6 | . . . . . 4 . . . 2 . Utility 8 | . 1 . . . 4 . . . 3 . Weapon 5 | . . . . . 1 . 1 . 2 1 Highest Loss Streak 11 | . 1 . . . 11 . 1 . 4 1 To Critical Strikes . | . . . . . . . . . . . Average Backups 7 | 2 7 8 9 10 11 3 3 4 2 3 Power . | . 1 2 . 1 . . . . . . Propulsion . | 1 1 1 . . 1 . . . . 1 Utility 3 | . 2 2 4 4 7 2 1 2 1 1 Weapon 2 | . 2 3 3 4 2 1 2 2 1 . Tool/Special . | . . . . . . . . . . . Unused Backups 23 | . 3 . 4 . 12 . . . . 4 Power 2 | . . . . . 1 . . . . 1 Propulsion 4 | . 2 . . . 1 . . . . 1 Utility 9 | . . . 2 . 6 . . . . 1 Weapon 7 | . 1 . 2 . 3 . . . . 1 Tool/Special 1 | . . . . . 1 . . . . . Average Slot Usage (%) 80 | . 96 97 89 69 73 21 42 41 27 22 Engine 7 | . 14 14 6 . . . . . . . Core 3 | . . . 7 6 8 . . . . . Treads 22 | . 28 28 28 13 19 2 5 5 2 . Device 3 | . 12 . . 10 12 . 5 5 1 . Storage 10 | . 12 14 14 6 5 . . . . . Processor 2 | . . . . 12 9 5 11 11 10 10 Protection 8 | . . 12 14 12 8 . . . 1 . Ballistic Cannon 10 | . 26 23 4 . . 2 4 . . . Special Weapon 4 | . . . 9 6 5 . . . . . Impact Weapon 3 | . . 4 4 . . 3 5 5 2 . Peak Build Rating 70 | 6 8 11 29 48 70 37 42 37 37 28 Average Rating 20 | 4 7 8 22 45 53 20 38 37 28 24 On Entrance 21 | . 6 7 11 29 48 2 37 37 37 18 Avg Prop Armor Cover (%) 19 | . . . . . . 15 18 26 26 . Naked Turns 57 | . . . . . 12 45 . . . . Heaviest Build 62 | 10 22 24 49 57 62 11 11 3 12 3 Greatest Support 120 | 40 40 40 43 43 120 11 11 11 11 3 Greatest Overweight (x) 1 | . . . 1 1 1 . . . 1 . Average Overweight (x) . | . . . . 1 . . . . . . Largest Inventory Capacity 15 | 5 10 10 15 15 15 5 5 5 5 5 Average Capacity 9 | 5 8 10 10 15 14 5 5 5 5 5 Most Carried 15 | 5 9 9 15 14 14 5 4 4 4 5 Average Carried 8 | 2 7 8 10 12 12 3 3 4 2 4 Final Capacity 15 | 5 10 10 15 15 5 5 5 5 5 5 Final Carried 15 | 5 9 9 15 14 4 3 4 4 2 5 Class Distribution -------------------- 93% | Mutant 3% | Derelict-Skirmisher Dominant Class ---------------- Mutant | -10/Materials Mutant | -10/Subcaves Mutant | -8/Scraptown Derelict-Skirmisher | -6/Factory Skirmisher | -6/DSF Mutant | -5/Factory Mutant | -5/Upper Caves Mutant | -5/Upper Caves Mutant | -4/Factory Hacker-Mutant | -4/Extension Resources | -11 -10 -10 -8 -6 -6 -5 -5 -5 -4 -4 ----------- Run | Yrd Mat Sub Scr Fac DSF Fac Upp Upp Fac Ext Matter Collected 1277 | 282 439 33 128 . 185 20 60 . 106 24 Remotely . | . . . . . . . . . . . Salvage Created 1051 | 84 423 40 . . 178 95 . . 207 24 Parts 65 | 6 31 1 . . 14 . . . 12 1 Haulers Intercepted 3 | . 2 . . . . 1 . . . . Recyclers Shooed 2 | 1 . . . . . . . . 1 . Parts Field Recycled . | . . . . . . . . . . . Retrieved Matter . | . . . . . . . . . . . Parts Self-Destructed 1 | . . 1 . . . . . . . . Prevented . | . . . . . . . . . . . Parts Restored . | . . . . . . . . . . . Kills | -11 -10 -10 -8 -6 -6 -5 -5 -5 -4 -4 ------- Run | Yrd Mat Sub Scr Fac DSF Fac Upp Upp Fac Ext Combat Hostiles Destroyed 24 | . 11 3 . . 3 . . . 7 . Melee 3 | . . 1 . . . . . . 2 . Cannons 19 | . 11 . . . 3 . . . 5 . Classes Destroyed 11 | 2 5 . . . 2 . . . 1 1 Worker 3 | 2 1 . . . . . . . . . Builder 1 | . . . . . . . . . . 1 Tunneler 2 | 1 1 . . . . . . . . . Hauler 3 | . 2 . . . . 1 . . . . Recycler 1 | . 1 . . . . . . . . . Operator 2 | . 2 . . . . . . . . . Swarmer 12 | . 5 3 . . . . . . 4 . Grunt 7 | . 6 . . . . . . . 1 . Duelist 1 | . . . . . 1 . . . . . Specialist 2 | . . . . . 2 . . . . . Hunter 2 | . . . . . . . . . 2 . Best Kill Streak 5 | 2 3 3 . . 1 1 . . 5 1 Combat Bots Only 5 | . 2 3 . . 1 . . . 5 . Max Kills in Single Turn 2 | 2 1 1 . . 1 1 . . 1 1 Gunslinging . | . . . . . . . . . . . Exploded . | . . . . . . . . . . . Melee 1 | . . 1 . . . . . . 1 . Uniques/NPCs Destroyed . | . . . . . . . . . . . Combat | -11 -10 -10 -8 -6 -6 -5 -5 -5 -4 -4 -------- Run | Yrd Mat Sub Scr Fac DSF Fac Upp Upp Fac Ext Hostile Shots Fired 438 | . 80 14 . . 138 . 22 14 144 26 Missed 162 | . 28 8 . . 52 . 5 7 51 11 Hits 276 | . 52 6 . . 86 . 17 7 93 15 Melee 3 | . . . . . 3 . . . . . Projectile 273 | . 52 6 . . 83 . 17 7 93 15 Critical Strikes 12 | . 1 . . . 5 . . . 4 2 Part Disruptions 1 | . . . . . . 1 . . . . Damage Taken 5181 | . 500 52 . . 2178 149 329 99 1437 437 Core 2011 | . 68 8 . . 585 18 155 . 763 414 Absorbed by Shields . | . . . . . . . . . . . Core Remaining (%) 70 | 100 . . 69 . 31 . . 82 . . Volleys Fired 101 | 4 65 4 . . 12 . . . 16 . Largest 2 | 2 2 1 . . 1 . . . 1 . Hottest 70 | 70 60 30 . . 40 . . . 44 . Shots Fired 134 | 8 93 5 . . 12 . . . 16 . Gun 8 | 8 . . . . . . . . . . Cannon 116 | . 93 5 . . 2 . . . 16 . Launcher . | . . . . . . . . . . . Special 10 | . . . . . 10 . . . . . Kinetic 120 | 4 93 5 . . 2 . . . 16 . Thermal 4 | 4 . . . . . . . . . . Explosive . | . . . . . . . . . . . Electromagnetic . | . . . . . . . . . . . Impact 10 | . . . . . 10 . . . . . Robot Hit Streak 11 | 1 7 . . . 7 . . . 11 . Robot Miss Streak 5 | 2 5 . . . 1 . . . 3 . Penetration Max . | . . . . . . . . . . . Secondary Targets . | . . . . . . . . . . . Shots Hit Robots 95 | 3 41 5 . . 11 1 . . 33 1 Core Hits 53 | 4 19 . . . 3 . . . 26 1 Critical Kills . | . . . . . . . . . . . Critical Parts Destroyed 1 | . . 1 . . . . . . . . Critical Strikes 5 | . 2 1 . . . . . . 2 . Blast 2 | . 2 . . . . . . . . . Smash 1 | . . 1 . . . . . . . . Sever 2 | . . . . . . . . . 2 . Melee Attacks 35 | . . 11 . . . 3 . . 20 1 Impact 15 | . . 11 . . . 3 . . 1 . Slashing 20 | . . . . . . . . . 19 1 Piercing . | . . . . . . . . . . . Sneak Attacks 3 | . . . . . . 1 . . 1 1 Combat Hostiles . | . . . . . . . . . . . Follow-up Attacks . | . . . . . . . . . . . Damage Inflicted 2862 | 48 752 235 . . 608 71 . . 1070 78 Guns 48 | 48 . . . . . . . . . . Cannons 1150 | . 741 . . . 25 . . . 384 . Explosions . | . . . . . . . . . . . Melee 1070 | . . 235 . . . 71 . . 686 78 Ramming 11 | . 11 . . . . . . . . . Kinetic 1174 | 24 741 . . . 25 . . . 384 . Thermal 24 | 24 . . . . . . . . . . Explosive . | . . . . . . . . . . . Electromagnetic . | . . . . . . . . . . . Impact 889 | . . 235 . . 583 71 . . . . Slashing 764 | . . . . . . . . . 686 78 Piercing . | . . . . . . . . . . . Highest Corruption 3 | . 3 3 . . . . . . . . Average Corruption 2 | . 2 3 . . . . . . . . Corruption Purged . | . . . . . . . . . . . Corruption Blocked 3 | . . . . . . 3 . . . . Effects 26 | . 16 10 . . . . . . . . Message Errors 4 | . 4 . . . . . . . . . Matter Fused 7 | . 3 4 . . . . . . . . Energy Discharges 1 | . 1 . . . . . . . . . Data Loss (minor) 7 | . 3 4 . . . . . . . . Data Loss (major) 2 | . 1 1 . . . . . . . . Misfires 4 | . 3 1 . . . . . . . . Alerts 1 | . 1 . . . . . . . . . Overload Shots . | . . . . . . . . . . . Overflow Damage 222 | . 12 120 . . 30 51 . . 9 . Projectiles 42 | . 12 . . . 30 . . . . . Explosions . | . . . . . . . . . . . Melee 180 | . . 120 . . . 51 . . 9 . Knockbacks 37 | . 14 2 . . 3 . . . 18 . Impact 4 | . . 2 . . 2 . . . . . Kinetic 32 | . 14 . . . . . . . 18 . Secondary 1 | . . . . . 1 . . . . . Self-Inflicted Damage . | . . . . . . . . . . . Shots . | . . . . . . . . . . . Rammed 1 | . 1 . . . . . . . . . Targets Rammed 1 | . 1 . . . . . . . . . Kicked . | . . . . . . . . . . . Crushed . | . . . . . . . . . . . Highest Temperature 39 | 18 39 . . . . . . . 16 . Average Temperature 18 | 8 22 . . . . . . . 7 . Received Heat Transfer 465 | . 102 . . . 234 . 27 . 60 42 Siege Activations . | . . . . . . . . . . . Martial Activations . | . . . . . . . . . . . Shielding Activations . | . . . . . . . . . . . Robots Disrupted . | . . . . . . . . . . . Combat Hostiles . | . . . . . . . . . . . Robots Corrupted 3 | . . 2 . . . 1 . . . . Combat Hostiles 2 | . . 2 . . . . . . . . Parts Fried 3 | . . 3 . . . . . . . . Impact Corruptions 8 | . . 5 . . 1 2 . . . . Robots Melted . | . . . . . . . . . . . Combat Hostiles . | . . . . . . . . . . . Parts Melted . | . . . . . . . . . . . Heat Transferred 74 | 74 . . . . . . . . . . Parts Sabotaged . | . . . . . . . . . . . Parts Stolen . | . . . . . . . . . . . Parts Stripped . | . . . . . . . . . . . Power Chain Reactions . | . . . . . . . . . . . Alert | -11 -10 -10 -8 -6 -6 -5 -5 -5 -4 -4 ------- Run | Yrd Mat Sub Scr Fac DSF Fac Upp Upp Fac Ext Maximum Alert Level 2 | . . . . . 2 1 . . . . Low Security (%) 89 | 100 100 . . 100 73 13 . . 100 100 Level 1 9 | . . . . . 12 86 . . . . Level 2 . | . . . . . 13 . . . . . Level 3 . | . . . . . . . . . . . Level 4 . | . . . . . . . . . . . Level 5 . | . . . . . . . . . . . High Security . | . . . . . . . . . . . Max Security . | . . . . . . . . . . . Peak Influence 556 | 10 133 . . . 556 291 . . 125 63 Initial 291 | . . . . . . 291 . . 18 56 Average 64 | . 44 . . . 128 243 . . 49 36 Influence Increases 1548 | 15 378 145 . . 666 16 45 30 205 48 Destroy 0b10 Robot/C 480 | . 220 60 . . 60 . . . 140 . Destroy 0b10 Robot/NC 60 | 15 35 . . . . 5 . . . 5 Destroy Leader 96 | . 44 10 . . 20 2 . . 20 . Allied During Kill 1 | . . . . . . . . . . 1 Successful Hack 17 | . . . . . . 5 . . . 12 Disable Machine 15 | . 15 . . . . . . . . . Destroy Structure 9 | . 4 . . . 1 4 . . . . Lose Combat Pursuer 870 | . 60 75 . . 585 . 45 30 45 30 Influence Decreases 1548 | 15 378 125 20 . 110 385 222 10 120 163 Entered New Map 428 | . . . 20 . . 265 70 2 12 59 Time Decay 921 | 15 378 125 . . . 120 147 8 68 60 Lost Part 160 | . . . . . 110 . 5 . 40 5 Lost Ally 39 | . . . . . . . . . . 39 Squads Dispatched 6 | . 1 . . . 2 . . . 2 1 Investigation 1 | . . . . . . . . . . 1 Extermination . | . . . . . . . . . . . Reinforcement 3 | . 1 . . . 2 . . . . . Assault . | . . . . . . . . . . . Garrison 2 | . . . . . . . . . 2 . Intercept . | . . . . . . . . . . . Searches Triggered . | . . . . . . . . . . . Construction Impeded . | . . . . . . . . . . . Haulers Reinforced . | . . . . . . . . . . . Active Scanning Responses . | . . . . . . . . . . . Cargo Convoy Interrupts . | . . . . . . . . . . . Stealth | -11 -10 -10 -8 -6 -6 -5 -5 -5 -4 -4 --------- Run | Yrd Mat Sub Scr Fac DSF Fac Upp Upp Fac Ext Distress Signals 5 | . 2 . . . . . . . 3 . Communications Jammed . | . . . . . . . . . . . Distress Signals . | . . . . . . . . . . . Times Spotted 104 | . 26 6 . . 45 . 5 4 13 5 Peak Tracking Total 9 | . 5 3 . . 6 . 4 4 9 3 Tactical Retreats 17 | . 2 4 . . 5 . 3 1 1 1 Traps | -11 -10 -10 -8 -6 -6 -5 -5 -5 -4 -4 ------- Run | Yrd Mat Sub Scr Fac DSF Fac Upp Upp Fac Ext Traps Triggered 7 | . 3 . . . 1 1 . . . 2 Indirectly . | . . . . . . . . . . . Trap Hack Attempts . | . . . . . . . . . . . Triggered . | . . . . . . . . . . . Disarmed . | . . . . . . . . . . . Reprogrammed . | . . . . . . . . . . . Reused . | . . . . . . . . . . . Traps Extracted . | . . . . . . . . . . . Installed . | . . . . . . . . . . . Triggered . | . . . . . . . . . . . Most Traps Carried 1 | . . . 1 1 1 . . . . . Machines | -11 -10 -10 -8 -6 -6 -5 -5 -5 -4 -4 ---------- Run | Yrd Mat Sub Scr Fac DSF Fac Upp Upp Fac Ext Machines Disabled 1 | . 1 . . . . . . . . . Max in Single Turn 1 | . 1 . . . . . . . . . Machines Repaired . | . . . . . . . . . . . Machines Dismantled . | . . . . . . . . . . . Machines Sabotaged . | . . . . . . . . . . . Overloaded Fab Kills . | . . . . . . . . . . . Hacking | -11 -10 -10 -8 -6 -6 -5 -5 -5 -4 -4 --------- Run | Yrd Mat Sub Scr Fac DSF Fac Upp Upp Fac Ext Machines Accessed 15 | . 1 . 8 2 . 2 . . . 2 Terminals 6 | . 1 . . 1 . 2 . . . 2 Fabricators 1 | . . . . 1 . . . . . . Repair Stations . | . . . . . . . . . . . Recycling Units . | . . . . . . . . . . . Scanalyzers . | . . . . . . . . . . . Garrison Access . | . . . . . . . . . . . Total Hacks 51 | . 2 . 38 3 . 4 . . . 4 Successful 43 | . 1 . 38 1 . 1 . . . 2 Failed 8 | . 1 . . 2 . 3 . . . 2 Catastrophic . | . . . . . . . . . . . Database Lockouts . | . . . . . . . . . . . Manual 2 | . 1 . . . . 1 . . . . Terminals 12 | . 2 . . 2 . 4 . . . 4 Fabricators 1 | . . . . 1 . . . . . . Repair Stations . | . . . . . . . . . . . Recycling Units . | . . . . . . . . . . . Scanalyzers . | . . . . . . . . . . . Garrison Access . | . . . . . . . . . . . Terminal Hacks 43 | . 1 . 38 1 . 1 . . . 2 Record 31 | . . . 31 . . . . . . . Robot Analysis 6 | . . . 6 . . . . . . . Open Door 1 | . . . . . . . . . . 1 Open DSF 2 | . . . . 1 . 1 . . . . Locate Traps 1 | . 1 . . . . . . . . . Zone Layout 1 | . . . . . . . . . . 1 Proto ID Catalog 1 | . . . 1 . . . . . . . Fabricator Hacks . | . . . . . . . . . . . Repair Station Hacks . | . . . . . . . . . . . Recycling Unit Hacks . | . . . . . . . . . . . Scanalyzer . | . . . . . . . . . . . Garrison Access Hacks . | . . . . . . . . . . . Unauthorized Hacks . | . . . . . . . . . . . Terminals . | . . . . . . . . . . . Fabricators . | . . . . . . . . . . . Repair Stations . | . . . . . . . . . . . Recycling Units . | . . . . . . . . . . . Scanalyzers . | . . . . . . . . . . . Garrison Access . | . . . . . . . . . . . Data Cores Recovered 1 | . 1 . . . . . . . . . Used . | . . . . . . . . . . . Hacking Detections 7 | . 1 . . 2 . 2 . . . 2 Full Trace Events 1 | . . . . . . . . . . 1 Feedback Events . | . . . . . . . . . . . Feedback Blocked . | . . . . . . . . . . . Robot Schematics Acquired . | . . . . . . . . . . . Robots Built . | . . . . . . . . . . . Authchips . | . . . . . . . . . . . Time . | . . . . . . . . . . . Total Robot Build Rating . | . . . . . . . . . . . Part Schematics Acquired . | . . . . . . . . . . . Parts Built . | . . . . . . . . . . . Authchips . | . . . . . . . . . . . Time . | . . . . . . . . . . . Total Part Build Rating . | . . . . . . . . . . . Part Studies Acquired . | . . . . . . . . . . . Parts Repaired . | . . . . . . . . . . . Time . | . . . . . . . . . . . Parts Recycled . | . . . . . . . . . . . Recycled Matter . | . . . . . . . . . . . Retrieved Matter . | . . . . . . . . . . . Retrieved Components . | . . . . . . . . . . . Parts Scanalyzed . | . . . . . . . . . . . Part Schematics Acquired . | . . . . . . . . . . . Parts Damaged . | . . . . . . . . . . . Bothacking | -11 -10 -10 -8 -6 -6 -5 -5 -5 -4 -4 ------------ Run | Yrd Mat Sub Scr Fac DSF Fac Upp Upp Fac Ext Used RIF Installer . | . . . . . . . . . . . Robots Hacked . | . . . . . . . . . . . Non-combat . | . . . . . . . . . . . Combat . | . . . . . . . . . . . Robot Hacks Applied . | . . . . . . . . . . . Relay Couplers Released . | . . . . . . . . . . . Fabnet Peak Effective % . | . . . . . . . . . . . Robots Rewired . | . . . . . . . . . . . Allies Hacked . | . . . . . . . . . . . Hacks Repelled . | . . . . . . . . . . . Allies | -11 -10 -10 -8 -6 -6 -5 -5 -5 -4 -4 -------- Run | Yrd Mat Sub Scr Fac DSF Fac Upp Upp Fac Ext Total Allies 2 | . . . . . . . . . . 2 Largest Group 2 | . . . . . . . . . . 2 Highest-Rated Group 84 | . . . . . . . . . . 84 Highest-Rated Ally 46 | . . . . . . . . . . 46 Initial UFD Resources 28 | . . . . 22 22 25 25 25 28 28 Total Orders . | . . . . . . . . . . . Ally Attacks 4 | . . . . . . . . . . 4 Total Damage 40 | . . . . . . . . . . 40 Kills . | . . . . . . . . . . . Allies Corrupted . | . . . . . . . . . . . Allies Melted . | . . . . . . . . . . . Intel | -11 -10 -10 -8 -6 -6 -5 -5 -5 -4 -4 ------- Run | Yrd Mat Sub Scr Fac DSF Fac Upp Upp Fac Ext Active Infowar (turns) 1680 | 14 1188 . 1 199 148 38 91 . . 1 Sensors 129 | . . . . . . 38 91 . . . Terrain 348 | . . . . 199 148 . . . . 1 Seismic 1202 | 14 1188 . . . . . . . . . Machine Analysis 346 | . . . 1 197 148 . . . . . Robot Analysis Total 6 | . . . 6 . . . . . . . Derelict Logs Recovered 1 | . . . . . . . 1 . . . Drone Launches . | . . . . . . . . . . . Drone Recoveries . | . . . . . . . . . . . Exploration | -11 -10 -10 -8 -6 -6 -5 -5 -5 -4 -4 ------------- Run | Yrd Mat Sub Scr Fac DSF Fac Upp Upp Fac Ext Turns Passed 6618 | 158 1366 617 2994 200 181 255 369 118 218 142 Spaces Moved 4357 | 87 737 362 1706 79 94 332 407 132 168 253 Core 440 | 6 . . . . 23 125 . . 33 253 Treads 3036 | 81 737 362 1706 79 71 . . . . . Legs . | . . . . . . . . . . . Wheels . | . . . . . . . . . . . Hover 881 | . . . . . . 207 407 132 135 . Flight . | . . . . . . . . . . . Fastest Speed 50 | 50 160 160 160 245 50 50 90 90 50 50 Average Speed 141 | 152 160 160 173 245 143 71 90 90 78 50 Slowest Speed 245 | 160 160 160 245 245 245 90 90 90 110 50 Overloaded Moves . | . . . . . . . . . . . Propulsion Burnouts . | . . . . . . . . . . . Robots Hopped . | . . . . . . . . . . . Potential Cave-ins . | . . . . . . . . . . . Cave-ins Triggered . | . . . . . . . . . . . Exploration Rate (%) 40 | 4 98 25 88 3 90 11 69 24 7 25 Regions Visited 10 Branch Regions 5 Pre-discovered Areas 2 | . . . 1 . . . 1 . . . Known Exits Taken 1 | . . . . 1 . . . . . . Unknown Exits Taken 8 | 1 1 1 1 . . 1 1 1 1 . Scrap Searched 9 | . . . 6 . . . 3 . . . Spaces Dug 2 | . . . . . . 2 . . . . Terrain Destroyed 3 | . . . . . 1 2 . . . . Melee 2 | . . . . . . 2 . . . . Projectile 1 | . . . . . 1 . . . . . AOE . | . . . . . . . . . . . Terrain Rammed . | . . . . . . . . . . . Walls Destroyed . | . . . . . . . . . . . Machines Disabled . | . . . . . . . . . . . Actions | -11 -10 -10 -8 -6 -6 -5 -5 -5 -4 -4 --------- Run | Yrd Mat Sub Scr Fac DSF Fac Upp Upp Fac Ext Total 4635 | 101 834 384 1745 86 128 344 409 131 207 266 Wait 31 | . 13 5 . . 6 . 1 . . 6 Move 4347 | 86 736 361 1705 78 93 331 406 131 167 253 Hop . | . . . . . . . . . . . Pick Up 40 | 4 6 1 14 3 5 3 1 . 1 2 Fast Attach 23 | 6 3 . 2 1 4 3 1 . . 3 Attach 12 | . . 1 . 4 . 4 . . 3 . Detach 2 | . . . 1 . . . . . . 1 Swap 13 | 1 3 1 6 . 2 . . . . . Drop 29 | . 7 . 16 . 6 . . . . . Fire 101 | 4 65 4 . . 12 . . . 16 . Melee 35 | . . 11 . . . 3 . . 20 1 Ram . | . . . . . . . . . . . Kick . | . . . . . . . . . . . Crush 1 | . 1 . . . . . . . . . Escape Stasis . | . . . . . . . . . . . Rewire 1 | . . . 1 . . . . . . . Trap . | . . . . . . . . . . . Miscellaneous . | . . . . . . . . . . . Route ------- -11/Scrapyard -10/Materials (discovered 5 exits: [*Mat x3] / [*Min] / [*Sub]) -10/Subcaves -8/Scraptown (discovered 2 exits: *Fac x2) -6/Factory -6/DSF -5/Factory -5/Upper Caves -5/Upper Caves -4/Factory -4/Extension History --------- Turn | Location | Event 7 | -11/Scrapyard | Discovered new exit (range 16) 159 | -11/Scrapyard | Entered Materials 309 | -10/Materials | Build established: Mutant 468 | -10/Materials | Discovered new exit (range 8) 831 | -10/Materials | Discovered new exit (range 9) 1063 | -10/Materials | Discovered new exit (range 12) 1308 | -10/Materials | Discovered new exit (range 9) 1504 | -10/Materials | Discovered new exit (range 12) 1525 | -10/Materials | Entered Subcaves 1526 | -10/Subcaves | Approached by a straggling Scientist 1796 | -10/Subcaves | Shifting Twisted Machinery released Mak. Hammer 2142 | -10/Subcaves | Entered Scraptown 2142 | -8/Scraptown | System corruption cleaned by C-Scrubber 2474 | -8/Scraptown | Discovered new exit (range 11) 2661 | -8/Scraptown | Visited Cyclists 2693 | -8/Scraptown | Visited Assassins FH 3005 | -8/Scraptown | Visited UFD Registry 3005 | -8/Scraptown | Registered with UFD as "Flashsplitter" 3046 | -8/Scraptown | Visited Junk Cannon Lab 3095 | -8/Scraptown | Found Prototype Special Weapon 3095 | -8/Scraptown | Identified Junk Cannon 3138 | -8/Scraptown | Visited Infowarlord's Domain 3153 | -8/Scraptown | Found Exp. Terrain Scan Processor 3191 | -8/Scraptown | Visited Science Guys 3426 | -8/Scraptown | Visited Scrap Suit Storage 3437 | -8/Scraptown | Found Scrap Suit 3483 | -8/Scraptown | Visited DA-N13 Charitable Foundation 3507 | -8/Scraptown | Found DCF Scrap (29 items) 3590 | -8/Scraptown | Visited Abandonware Association 3611 | -8/Scraptown | Learned abandonware demo "REPAIR.EXE" 3611 | -8/Scraptown | Learned abandonware demo "KABOOM.EXE" 3651 | -8/Scraptown | Visited Chapter 10 3723 | -8/Scraptown | Visited Analyses Database 3774 | -8/Scraptown | Visited A0-MCA Data Center 3787 | -8/Scraptown | Given a B rating by A0-MCA 3796 | -8/Scraptown | Found A0-MCA's Component Scanner 4181 | -8/Scraptown | Entered Cyclist Reading Room 4284 | -8/Scraptown | Visited Symbiants 4333 | -8/Scraptown | Visited IN-MT5's Study 5006 | -8/Scraptown | Met Optimus 5006 | -8/Scraptown | Accepted into 0bPrime 5124 | -8/Scraptown | Discovered new exit (range 5) 5136 | -8/Scraptown | Entered Factory 5136 | -6/Factory | Evolved 8 slots: Power x1, Propulsion x2, Utility x5 5336 | -6/Factory | Identified exit to DSF 5336 | -6/Factory | Entered DSF 5374 | -6/DSF | Additional patrols routed to DSF 5505 | -6/DSF | Released all parts (4) 5508 | -6/DSF | Core integrity fell below 50% 5511 | -6/DSF | Discovered new exit (range 14) 5517 | -6/DSF | Entered Factory 5517 | -5/Factory | Evolved 2 slots: Utility x2 5535 | -5/Factory | Lost 11 parts (2p4n4u1w) 5758 | -5/Factory | Discovered new exit (range 13) 5772 | -5/Factory | Entered Upper Caves 5858 | -5/Upper Caves | Learned location of Armory (-4) 6055 | -5/Upper Caves | Attracted the attention of an 0b10 checkpoint 6130 | -5/Upper Caves | Discovered new exit (range 7) 6141 | -5/Upper Caves | Entered another Upper Caves area 6142 | -5/Upper Caves | Encountered a Warlord checkpoint 6253 | -5/Upper Caves | Discovered new exit (range 8) 6259 | -5/Upper Caves | Entered Factory 6259 | -4/Factory | Evolved 2 slots: Utility x2 6376 | -4/Factory | Garrison activated, responded to threat 6406 | -4/Factory | Lost 4 parts (1n2u1w) 6439 | -4/Factory | Core integrity fell below 50% 6468 | -4/Factory | Discovered new exit (range 13) 6477 | -4/Factory | Entered Extension 6482 | -4/Extension | Lost 3 parts (1n1u1w) 6494 | -4/Extension | Rescued a captive Derelict 6494 | -4/Extension | Rescued a captive Derelict 6598 | -4/Extension | Core integrity fell below 20% 6619 | -4/Extension | Destroyed by Gamma Bomb Trap Last Messages --------------- >>Layout(Zone) Retrieving Zone 5W layout... Downloaded map data. 06502_ Acquired Imp. System Shield. 06507_ Acquired System Shield. 06509_ Acquired Hvy. Flak Cannon. 06515_ Acquired Lgt. Fission Core. 06524_ Sneak attack on U-05 Engineer. 06524_ U-05 Engineer destroyed. 06526_ Acquired 24 matter. 06527_ Acquired Terrain Scanner. 06556_ G-67 Veteran suffers critical hit (Burn). 06597_ Triggered Fusion Bomb Trap. 06597_ An explosion rips through the floor. 06597_ Chainsword destroyed. 06598_ Component scanned: Enh. Armored Leg. 06602_ U-05 Engineer lays Concrete. 06617_ Recycling Unit disabled. 06619_ Triggered Gamma Bomb Trap. 06619_ A bubble of electromagnetic force engulfs the area. Map ----- +----------------------------------------------------+ | | | | | | | | | | | | | | | | | | | ?????????????????????????????????????????????????? | | ?????????????????????????????????????????????????? | | ?????????????????????????????????????????????????? | | ?????????????????????????????????????????????????? | | ?????????????????????????????????????????????????? | | ?????????????????????????????????????????????????? | | ???????????????????#####?????????????????????????? | | ???????????????##### #?????????????????????????? | | ???#######+#####"T"# #?????????????????????????? | | ???# #?????????????????????????? | | ???# #?????????????????????????? | | #### =! #?????????????????????????? | | =! #?????????????????????????? | | #### ! ""#???#?????????????????????? | | # "#?? #?????????????????????? | | ""### #?????????????????????? | | @ #?????????????????????? | | ??????????????? | | ### ??????????? | | #?# ##################### ??????????? | | # ##?#######????????????????????????#?????????? | | ######???????????????????????????????????????????? | | ?????????????????????????????????????????????????? | | ?????????????????????????????????????????????????? | | ?????????????????????????????????????????????????? | | ?????????????????????????????????????????????????? | | ?????????????????????????????????????????????????? | | ?????????????????????????????????????????????????? | | ?????????????????????????????????????????????????? | | ?????????????????????????????????????????????????? | | ?????????????????????????????????????????????????? | | ?????????????????????????????????????????????????? | | ?????????????????????????????????????????????????? | | ?????????????????????????????????????????????????? | | ?????????????????????????????????????????????????? | | ?????????????????????????????????????????????????? | | ?????????????????????????????????????????????????? | | ?????????????????????????????????????????????????? | | ?????????????????????????????????????????????????? | | ?????????????????????????????????????????????????? | | ?????????????????????????????????????????????????? | +----------------------------------------------------+ Best States ------------- Heat Dissipation 43 Energy Generation 24 Energy Capacity 290 Matter Stores 300 Matter Capacity 300 Sight Range 16 Robot Scan Range 16 Terrain Scan Range 16 Terrain Scan Density 1010 Corruption Block 8 Armor Coverage 375 Evasion (%) 51 Recoil Reduction 4 Kinecelleration 30 Offensive Hacking 12 Defensive Hacking 22 Item Schematics ----------------- None Robot Schematics ------------------ None Fabricated ------------ Nothing Repaired ---------- Nothing Studied --------- None Alien Tech Used ----------------- None Achievements -------------- None Challenges ------------ None Game ------ Seed CompanionSwordDissipator Manual? 0 Play Time 00:41:20 Cumulative 69.4 hours Start 2026.08.26 @ 12:42:55 End 2026.08.26 @ 13:50:31 Sessions 1 Manual Loads 0 Difficulty Rogue Special Mode None Game No. 139 Rogue 132 Adventurer 7 Explorer 0 Win Type - Total 1 Types 1/0/0/0/0/0/0/0/0/0 Lore% 40 Gallery% 43 Achievement% 34 Wizard Run 0 Options --------- Layout 1 ASCII 0 Keyboard 1 Movement Vi Keybinds 0 Fullscreen 1 Font 24/Smallcaps Map View 76x35 Zoom Use 0% Tactical HUD 1 Map Filters NONE Filters NONE Steam 1 RUN: 34ffe53d-d1a5-442c-bf7c-078877e4f363